lending/lending_fUSD_20250318
["ID","MTS","AMOUNT","RATE_DAILY","PERIOD"]
[356327183,1742285433796,-167.24874474,9.973e-05,2]
[356327185,1742285433805,-500.0,9.973e-05,2]
[356327187,1742285433816,-500.0,9.973e-05,2]
[356327189,1742285433827,-154.50372113,9.973e-05,2]
[356327191,1742285433837,-160.46037566,9.973e-05,2]
[356327193,1742285433847,-150.0,9.977e-05,2]
[356327195,1742285433857,-150.0,9.978e-05,2]
[356327197,1742285433867,-150.0,9.978e-05,2]
[356327199,1742285433877,-1908.16806505,9.98e-05,2]
[356327201,1742285433886,-159.20638244,9.98e-05,2]
[356327203,1742285433897,-150.0,9.98e-05,2]
[356327205,1742285433907,-150.0,9.984e-05,2]
[356327207,1742285433916,-150.0,9.984e-05,2]
[356327225,1742285434115,-150.0,9.985e-05,2]
[356327226,1742285434126,-150.0,9.989e-05,2]
[356327227,1742285434135,-150.0,9.989e-05,2]
[356327228,1742285434145,-150.0,9.991e-05,2]
[356327229,1742285434154,-150.0,9.992e-05,2]
[356327230,1742285434163,-150.0,9.992e-05,2]
[356327231,1742285434173,-150.0,9.995e-05,2]
[356327232,1742285434182,-500.0,9.999e-05,2]
[356327233,1742285434191,-630.0,0.0001,2]
[356327234,1742285434200,-730.30665084,0.0001,2]
[356327235,1742285434209,-723019.06226923,0.0001,2]
[356327236,1742285434220,-428558.70281786,0.0001,2]
[356327237,1742285434229,-240985.39610696,0.0001,2]
[356327238,1742285434239,-256304.35190769,0.0001,2]
[356327239,1742285434248,-109856.69414694,0.0001,2]
[356327240,1742285434258,-206641.1490228,0.0001,2]
[356327241,1742285434267,-14734.2,0.0001,2]
[356327242,1742285434277,-866.08685724,0.0001,2]
[356327243,1742285434287,-3302943.19053986,0.0001,2]
[356327244,1742285434296,-169638.26207381,0.0001,2]
[356327245,1742285434306,-3390794.47552729,0.0001,2]
[356327246,1742285434315,-503276.65855366,0.0001,2]
[356327247,1742285434325,-2720741.33081696,0.0001,2]
[356327249,1742285434334,-1023315.61276372,0.0001,2]
[356327251,1742285434349,-667581.3630911,0.0001,2]
[356327253,1742285434360,-290.36277336,0.0001,2]
[356327255,1742285434369,-511.07,0.0001,2]
[356327257,1742285434380,-524490.87221491,0.0001,2]
[356327259,1742285434389,-211.0,0.0001,2]
[356327262,1742285434401,-211.0,0.0001,2]
[356327264,1742285434411,-150.0,0.0001,2]
[356327266,1742285434421,-1829.54143284,0.0001,2]
[356327268,1742285434431,-150.0,0.0001,2]
[356327270,1742285434440,-3899.3090957,0.0001,2]
[356327272,1742285434450,-150.0,0.0001,2]
[356327274,1742285434459,-14609.30440083,0.0001,2]
[356327276,1742285434470,-596765.35632126,0.0001,2]
[356327278,1742285434482,-1021520.0,0.0001,2]
[356327281,1742285434501,-2542.06301484,0.0001,2]
[356327283,1742285434513,-205833.27124153,0.0001,2]
[356327285,1742285434525,-362263.47618165,0.0001,2]
[356327317,1742285434828,40409.331215,8.897e-05,2]
[356327321,1742285434854,25674.727585,8.897e-05,2]
[356327616,1742285437970,-9178.068147,0.0001,2]
[356327623,1742285438082,-3850.43796558,0.0001,2]
[356327779,1742285439761,1295.9783,8.897e-05,2]
[356327941,1742285441248,-444.92872907,0.0001,2]
[356327946,1742285441287,-21842.21302755,0.0001,2]
[356327948,1742285441298,-955.34999998,0.0001,2]
[356328187,1742285443882,-250.10485488,0.0001,2]
[356328188,1742285443912,-567.0,0.0001,2]
[356328190,1742285443921,-113.25939569,0.0001,2]
[356328193,1742285443941,-6720.43008655,0.0001,2]
[356328214,1742285446252,-447.92259191,9.936e-05,2]
[356328216,1742285446265,-452.839995,9.936e-05,2]
[356328221,1742285446308,-213.23741309,9.936e-05,2]
[356328223,1742285446318,-574.76355913,0.0001,2]
[356328256,1742285467087,26052.3216,8.897e-05,2]
[356328257,1742285483883,227.6265,8.897e-05,2]
[356328258,1742285510194,3805.5192,8.897e-05,2]
[356328259,1742285531050,150.0,9.562e-05,7]
[356328261,1742285817067,1360.27156,0.0001045,3]
[356328262,1742285972588,150.5,0.0002191,120]
[356328263,1742285973142,165.4,0.000219,120]
[356328275,1742286081974,2396.31,8.219e-05,2]
[356328276,1742286104340,-250.0,9e-05,2]
[356328277,1742286104364,-95.61,9.012e-05,2]
[356328278,1742286107332,-2727.6755,9.012e-05,2]
[356328280,1742286304020,-200.0,8.959e-05,2]
[356328281,1742286304044,-100.0,8.986e-05,2]
[356328282,1742286306065,-150.0,8.986e-05,2]
[356328284,1742286383507,-1000.0,8.981e-05,2]
[356328286,1742286400330,-833.7408,8.975e-05,2]
[356328287,1742286542281,-382.2592,8.975e-05,2]
[356328288,1742286542307,-167.99,8.981e-05,2]
[356328289,1742286542333,-150.0,8.993e-05,2]
[356328290,1742286542360,-300.0,9.011e-05,2]
[356328291,1742286542385,-4080.5624,9.012e-05,2]
[356328292,1742286545402,600.0,9.4e-05,3]
[356328293,1742286547507,1300.0,9.5e-05,3]
[356328294,1742286549910,2000.0,9.6e-05,3]
[356328298,1742286551719,2600.0,9.7e-05,3]
[356328300,1742286553822,3300.0,9.8e-05,3]
[356328301,1742286555934,600.0,9.9e-05,3]
[356328302,1742286558048,600.0,0.0001,3]
[356328303,1742286573802,250.0,8.895e-05,2]
[356328304,1742286574156,150.0,9.562e-05,7]
[356328308,1742286584256,-6439.5884,9.012e-05,2]
[356328312,1742286607543,836.84,8.867e-05,2]
[356328313,1742286622866,-567.42,8.967e-05,2]
[356328314,1742286622889,-250.0,8.986e-05,2]
[356328315,1742286622912,-3007.8625,9.006e-05,2]
[356328329,1742286632252,-3103.28466,9.006e-05,2]
[356328330,1742286632262,-300.0,9.011e-05,2]
[356328331,1742286632272,-10556.5637,9.012e-05,2]
[356328332,1742286632282,-2000.0,9.023e-05,2]
[356328333,1742286632292,-500.0,9.089e-05,2]
[356328334,1742286632301,-502.0,9.452e-05,2]
[356328335,1742286632311,-345.61,9.49e-05,2]
[356328336,1742286632320,-240.47,9.49e-05,2]
[356328337,1742286632330,-150.0,9.49e-05,2]
[356328338,1742286632340,-150.0,9.589e-05,2]
[356328339,1742286632349,-442.45,9.59e-05,2]
[356328340,1742286632359,-779.87,9.59e-05,2]
[356328341,1742286632369,-150.0,9.59e-05,2]
[356328342,1742286632379,-345.61,9.59e-05,2]
[356328343,1742286632388,-441.71,9.59e-05,2]
[356328344,1742286632398,-150.0,9.59e-05,2]
[356328345,1742286632408,-150.0,9.59e-05,2]
[356328346,1742286632418,-150.0,9.59e-05,2]
[356328347,1742286632429,-345.61,9.59e-05,2]
[356328348,1742286632439,-150.0,9.59e-05,2]
[356328349,1742286632448,-441.71,9.59e-05,2]
[356328350,1742286632458,-150.0,9.59e-05,2]
[356328351,1742286632468,-150.0,9.59e-05,2]
[356328352,1742286632478,-779.87,9.59e-05,2]
[356328353,1742286632487,-442.45,9.59e-05,2]
[356328354,1742286632498,-436.58,9.59e-05,2]
[356328355,1742286632509,-150.0,9.59e-05,2]
[356328356,1742286632519,-150.0,9.59e-05,2]
[356328357,1742286632530,-345.61,9.59e-05,2]
[356328358,1742286632539,-150.0,9.59e-05,2]
[356328359,1742286632549,-779.87,9.59e-05,2]
[356328360,1742286632560,-442.45,9.59e-05,2]
[356328361,1742286632569,-345.61,9.59e-05,2]
[356328362,1742286632580,-150.0,9.59e-05,2]
[356328363,1742286632589,-442.45,9.59e-05,2]
[356328364,1742286632599,-378.51,9.59e-05,2]
[356328365,1742286632610,-345.61,9.59e-05,2]
[356328366,1742286632619,-150.0,9.59e-05,2]
[356328367,1742286632628,-442.45,9.59e-05,2]
[356328368,1742286632638,-162.24,9.59e-05,2]
[356328369,1742286632648,-150.0,9.59e-05,2]
[356328370,1742286632658,-718.27251878,9.6e-05,2]
[356328371,1742286632668,-150.99,9.6e-05,2]
[356328372,1742286632678,-3290.78,9.6e-05,2]
[356328374,1742286632688,-442.45,9.7e-05,2]
[356328376,1742286632698,-150.0,9.7e-05,2]
[356328378,1742286632707,-150.0,9.7e-05,2]
[356328380,1742286632717,-345.61,9.7e-05,2]
[356328382,1742286632728,-779.87,9.7e-05,2]
[356328384,1742286632737,-150.0,9.7e-05,2]
[356328386,1742286632747,-441.71,9.7e-05,2]
[356328388,1742286632756,-1436.44,9.7e-05,2]
[356328391,1742286632767,-582.9624774,9.7e-05,2]
[356328395,1742286632776,-2018.53,9.8e-05,2]
[356328398,1742286632785,-273.2595,9.8e-05,2]
[356328400,1742286632795,-18304.0,9.863e-05,2]
[356328403,1742286632809,-1520.0,9.863e-05,2]
[356328405,1742286632819,-150.0,9.863e-05,2]
[356328407,1742286632828,-250.0,9.863e-05,2]
[356328409,1742286632838,-150.0,9.872e-05,2]
[356328411,1742286632848,-3073.2855,9.873e-05,2]
[356328413,1742286632856,-150.11816,9.873e-05,2]
[356328415,1742286632866,-154.54908547,9.873e-05,2]
[356328417,1742286632875,-500.0,9.873e-05,2]
[356328419,1742286632883,-1000.0,9.889e-05,2]
[356328421,1742286632893,-8059.22,9.89e-05,2]
[356328423,1742286632902,-3625.43,9.89e-05,2]
[356328425,1742286632911,-999.99,9.89e-05,2]
[356328427,1742286632920,-7112.5000581,9.893e-05,2]
[356328429,1742286632930,-1000.0,9.899e-05,2]
[356328431,1742286632939,-805.317472,9.899e-05,2]
[356328433,1742286632949,-4080.02793018,9.899e-05,2]
[356328435,1742286632958,-330.87333704,9.899e-05,2]
[356328437,1742286632968,-222.86558461,9.899e-05,2]
[356328439,1742286632978,-500.0,9.899e-05,2]
[356328441,1742286632987,-254.13636811,9.899e-05,2]
[356328443,1742286632996,-500.0,9.899e-05,2]
[356328444,1742286633006,-500.0,9.899e-05,2]
[356328446,1742286633016,-500.0,9.899e-05,2]
[356328448,1742286633026,-500.0,9.899e-05,2]
[356328451,1742286633037,-500.0,9.899e-05,2]
[356328453,1742286633048,-500.0,9.899e-05,2]
[356328454,1742286633059,-158.28252962,9.899e-05,2]
[356328456,1742286633069,-500.0,9.899e-05,2]
[356328458,1742286633079,-500.0,9.899e-05,2]
[356328460,1742286633090,-500.0,9.899e-05,2]
[356328462,1742286633103,-500.0,9.899e-05,2]
[356328464,1742286633114,-500.0,9.899e-05,2]
[356328466,1742286633124,-500.0,9.899e-05,2]
[356328468,1742286633135,-500.0,9.899e-05,2]
[356328470,1742286633147,-500.0,9.899e-05,2]
[356328472,1742286633157,-500.0,9.899e-05,2]
[356328473,1742286633168,-150.0,9.899e-05,2]
[356328476,1742286633180,-500.0,9.899e-05,2]
[356328477,1742286633191,-7636.3581,9.9e-05,2]
[356328479,1742286633201,-957.4746,9.9e-05,2]
[356328481,1742286633212,-1000.0,9.9e-05,2]
[356328483,1742286633222,-3689.3309,9.9e-05,2]
[356328485,1742286633232,-32254.7049,9.9e-05,2]
[356328487,1742286633244,-441.71,9.9e-05,2]
[356328489,1742286633255,-150.0,9.9e-05,2]
[356328492,1742286633266,-345.61,9.9e-05,2]
[356328494,1742286633275,-150.0,9.9e-05,2]
[356328496,1742286633287,-150.0,9.9e-05,2]
[356328498,1742286633297,-779.87,9.9e-05,2]
[356328500,1742286633307,-150.0,9.9e-05,2]
[356328502,1742286633317,-442.45,9.9e-05,2]
[356328504,1742286633328,-779.87,9.9e-05,2]
[356328506,1742286633338,-150.0,9.9e-05,2]
[356328507,1742286633348,-150.0,9.9e-05,2]
[356328509,1742286633358,-150.0,9.9e-05,2]
[356328511,1742286633368,-345.61,9.9e-05,2]
[356328513,1742286633379,-150.0,9.9e-05,2]
[356328515,1742286633391,-150.0,9.9e-05,2]
[356328518,1742286633401,-150.0,9.9e-05,2]
[356328520,1742286633414,-442.45,9.9e-05,2]
[356328522,1742286633425,-150.0,9.9e-05,2]
[356328524,1742286633436,-441.71,9.9e-05,2]
[356328526,1742286633446,-150.0,9.9e-05,2]
[356328528,1742286633456,-150.0,9.9e-05,2]
[356328530,1742286633466,-345.61,9.9e-05,2]
[356328532,1742286633476,-150.0,9.9e-05,2]
[356328533,1742286633485,-441.71,9.9e-05,2]
[356328536,1742286633496,-150.0,9.9e-05,2]
[356328538,1742286633506,-442.45,9.9e-05,2]
[356328539,1742286633515,-779.87,9.9e-05,2]
[356328541,1742286633525,-441.71,9.9e-05,2]
[356328543,1742286633535,-345.61,9.9e-05,2]
[356328545,1742286633545,-150.0,9.9e-05,2]
[356328547,1742286633555,-150.0,9.9e-05,2]
[356328549,1742286633565,-150.0,9.9e-05,2]
[356328551,1742286633575,-150.0,9.9e-05,2]
[356328553,1742286633584,-779.87,9.9e-05,2]
[356328555,1742286633594,-150.0,9.9e-05,2]
[356328557,1742286633604,-150.0,9.9e-05,2]
[356328559,1742286633614,-442.45,9.9e-05,2]
[356328561,1742286633624,-805.317472,9.9e-05,2]
[356328563,1742286633633,-2667.602,9.9e-05,2]
[356328565,1742286633643,-157.552,9.9e-05,2]
[356328568,1742286633657,-1147.6589,9.9e-05,2]
[356328570,1742286633667,-5000.0,9.9e-05,2]
[356328572,1742286633677,-644085.09002685,9.9e-05,2]
[356328574,1742286633693,-2763.19870811,9.9e-05,2]
[356328593,1742286640497,-286.86500001,9.836e-05,2]
[356328595,1742286640696,-0.00780403,9.836e-05,2]
[356328649,1742286643903,-1747.12719596,9.836e-05,2]
[356328651,1742286643913,-1280.0,9.836e-05,2]
[356328653,1742286643923,-2163489.59207328,9.9e-05,2]
[356328655,1742286643932,-420.0,9.912e-05,2]
[356328657,1742286643942,-250.0,9.913e-05,2]
[356328659,1742286643951,-150.0,9.92e-05,2]
[356328661,1742286643960,-293.79,9.92e-05,2]
[356328663,1742286643970,-441.71,9.92e-05,2]
[356328665,1742286643979,-150.0,9.92e-05,2]
[356328667,1742286643989,-150.0,9.92e-05,2]
[356328669,1742286643999,-150.0,9.92e-05,2]
[356328672,1742286644009,-779.87,9.92e-05,2]
[356328674,1742286644019,-345.61,9.92e-05,2]
[356328676,1742286644029,-150.0,9.92e-05,2]
[356328678,1742286644038,-150.0,9.92e-05,2]
[356328680,1742286644047,-641.0,9.936e-05,2]
[356328682,1742286644057,-1419.0,9.936e-05,2]
[356328684,1742286644066,-571.0,9.936e-05,2]
[356328686,1742286644077,-787.0,9.936e-05,2]
[356328688,1742286644086,-4081.0,9.936e-05,2]
[356328690,1742286644096,-541.0,9.936e-05,2]
[356328692,1742286644106,-1429.0,9.936e-05,2]
[356328694,1742286644120,-1271.0,9.936e-05,2]
[356328696,1742286644130,-907.0,9.936e-05,2]
[356328698,1742286644139,-404.76,9.936e-05,2]
[356328700,1742286644148,-3936.0,9.936e-05,2]
[356328702,1742286644158,-151.0,9.936e-05,2]
[356328704,1742286644169,-644.0,9.936e-05,2]
[356328705,1742286644178,-13663.0,9.973e-05,2]
[356328707,1742286644188,-8113.8529562,9.993e-05,2]
[356328709,1742286644197,-9115.2058542,9.993e-05,2]
[356328711,1742286644207,-50084.14,9.999e-05,2]
[356328713,1742286644216,-500.0,9.999e-05,2]
[356328715,1742286644226,-514.0,0.0001,2]
[356328717,1742286644236,-418257.97458728,0.0001,2]
[356328720,1742286644247,-594050.22736786,0.0001,2]
[356328722,1742286644257,-150.0,0.0001,2]
[356328724,1742286644267,-3149.8309824,0.0001,2]
[356328726,1742286644277,-200.0,0.0001,2]
[356328728,1742286644287,-200.0,0.0001,2]
[356328730,1742286644297,-200.99,0.0001,2]
[356328732,1742286644307,-291.0,0.0001,2]
[356328734,1742286644317,-291.0,0.0001,2]
[356328736,1742286644328,-291.0,0.0001,2]
[356328738,1742286644338,-291.0,0.0001,2]
[356328740,1742286644348,-291.0,0.0001,2]
[356328742,1742286644358,-291.0,0.0001,2]
[356328744,1742286644369,-291.0,0.0001,2]
[356328746,1742286644380,-291.0,0.0001,2]
[356328748,1742286644390,-291.0,0.0001,2]
[356328750,1742286644399,-291.0,0.0001,2]
[356328752,1742286644409,-291.0,0.0001,2]
[356328754,1742286644418,-291.0,0.0001,2]
[356328755,1742286644427,-291.0,0.0001,2]
[356328756,1742286644436,-291.0,0.0001,2]
[356328757,1742286644445,-291.0,0.0001,2]
[356328758,1742286644454,-291.0,0.0001,2]
[356328759,1742286644463,-291.0,0.0001,2]
[356328760,1742286644471,-291.0,0.0001,2]
[356328761,1742286644480,-291.0,0.0001,2]
[356328762,1742286644490,-207.0,0.0001,2]
[356328763,1742286644499,-207.0,0.0001,2]
[356328764,1742286644509,-207.0,0.0001,2]
[356328765,1742286644519,-207.0,0.0001,2]
[356328766,1742286644528,-207.0,0.0001,2]
[356328767,1742286644537,-207.0,0.0001,2]
[356328768,1742286644546,-207.0,0.0001,2]
[356328769,1742286644555,-207.0,0.0001,2]
[356328770,1742286644565,-2066418.42671707,0.0001,2]
[356328771,1742286644574,-478.63553451,0.0001,2]
[356328772,1742286644583,-1000391.82883683,0.0001,2]
[356328774,1742286644592,-208.0,0.0001,2]
[356328776,1742286644602,-208.0,0.0001,2]
[356328778,1742286644612,-1568.40967475,0.0001,2]
[356328780,1742286644621,-998876.8046138,0.0001,2]
[356328782,1742286644630,-1000.0,0.0001,2]
[356328784,1742286644639,-1000.0,0.0001,2]
[356328786,1742286644649,-1000.0,0.0001,2]
[356328788,1742286644659,-1000.0,0.0001,2]
[356328790,1742286644669,-1000.0,0.0001,2]
[356328792,1742286644678,-1000.0,0.0001,2]
[356328794,1742286644687,-1000.0,0.0001,2]
[356328796,1742286644696,-1000.0,0.0001,2]
[356328798,1742286644705,-1000.0,0.0001,2]
[356328800,1742286644715,-1000.0,0.0001,2]
[356328802,1742286644725,-1000.0,0.0001,2]
[356328804,1742286644734,-1000.0,0.0001,2]
[356328806,1742286644743,-1000.0,0.0001,2]
[356328808,1742286644754,-1000.0,0.0001,2]
[356328810,1742286644764,-1000.0,0.0001,2]
[356328812,1742286644774,-1000.0,0.0001,2]
[356328814,1742286644783,-1000.0,0.0001,2]
[356328816,1742286644792,-1000.0,0.0001,2]
[356328818,1742286644801,-1000.0,0.0001,2]
[356328820,1742286644810,-1000.0,0.0001,2]
[356328822,1742286644820,-446.56761136,0.0001,2]
[356328824,1742286644830,-250.0,0.0001,2]
[356328826,1742286644839,-250.0,0.0001,2]
[356328828,1742286644848,-250.0,0.0001,2]
[356328830,1742286644858,-319.5,0.0001,2]
[356328832,1742286644867,-215.0,0.0001,2]
[356328834,1742286644877,-215.0,0.0001,2]
[356328836,1742286644886,-215.0,0.0001,2]
[356328838,1742286644895,-215.0,0.0001,2]
[356328840,1742286644904,-214.0,0.0001,2]
[356328842,1742286644914,-214.0,0.0001,2]
[356328844,1742286644923,-214.0,0.0001,2]
[356328846,1742286644932,-214.0,0.0001,2]
[356328848,1742286644941,-164.57154374,0.0001,2]
[356328850,1742286644951,-94443.55,0.0001,2]
[356328852,1742286644961,-151.0,0.0001,2]
[356328854,1742286644970,-151.0,0.0001,2]
[356328856,1742286644980,-151.0,0.0001,2]
[356328858,1742286644989,-151.0,0.0001,2]
[356328860,1742286645000,-151.0,0.0001,2]
[356328862,1742286645012,-152.505149,0.0001,2]
[356328864,1742286645023,-152.884328,0.0001,2]
[356328866,1742286645032,-151.0,0.0001,2]
[356328868,1742286645041,-151.0,0.0001,2]
[356328870,1742286645052,-151.0,0.0001,2]
[356328872,1742286645062,-151.0,0.0001,2]
[356328874,1742286645072,-151.0,0.0001,2]
[356328876,1742286645081,-151.0,0.0001,2]
[356328878,1742286645091,-293.75568,0.0001,2]
[356328880,1742286645100,-151.0,0.0001,2]
[356328882,1742286645114,-151.0,0.0001,2]
[356328884,1742286645124,-151.0,0.0001,2]
[356328886,1742286645134,-152.787327,0.0001,2]
[356328888,1742286645144,-151.0,0.0001,2]
[356328890,1742286645154,-151.0,0.0001,2]
[356328892,1742286645163,-151.0,0.0001,2]
[356328894,1742286645173,-152.27705,0.0001,2]
[356328896,1742286645182,-151.0,0.0001,2]
[356328898,1742286645192,-151.0,0.0001,2]
[356328900,1742286645202,-151.0,0.0001,2]
[356328902,1742286645211,-151.0,0.0001,2]
[356328904,1742286645220,-151.0,0.0001,2]
[356328906,1742286645230,-151.0,0.0001,2]
[356328908,1742286645240,-151.0,0.0001,2]
[356328910,1742286645250,-151.0,0.0001,2]
[356328912,1742286645260,-151.0,0.0001,2]
[356328914,1742286645270,-151.0,0.0001,2]
[356328916,1742286645279,-151.0,0.0001,2]
[356328918,1742286645289,-151.0,0.0001,2]
[356328920,1742286645298,-151.0,0.0001,2]
[356328922,1742286645307,-151.0,0.0001,2]
[356328924,1742286645317,-151.0,0.0001,2]
[356328926,1742286645326,-301.970376,0.0001,2]
[356328928,1742286645335,-151.0,0.0001,2]
[356328930,1742286645345,-151.0,0.0001,2]
[356328932,1742286645354,-152.743967,0.0001,2]
[356328934,1742286645363,-1764.37946648,0.0001,2]
[356328936,1742286645372,-200.0,0.0001,2]
[356328938,1742286645382,-566.23435486,0.0001,2]
[356328940,1742286645391,-158.47579155,0.0001,2]
[356328942,1742286645401,-845214.05003499,0.0001,2]
[356328944,1742286645410,-289.85306237,0.0001,2]
[356328946,1742286645420,-154.20110311,0.0001,2]
[356328948,1742286645430,-150.0,0.0001,2]
[356328950,1742286645440,-704138.91887328,0.0001,2]
[356328952,1742286645454,-766422.68134506,0.0001,2]
[356328954,1742286645463,-1133.55963,0.0001,2]
[356328956,1742286645473,-151.0,0.0001,2]
[356328958,1742286645482,-152.648854,0.0001,2]
[356328960,1742286645492,-209.0,0.0001,2]
[356328962,1742286645502,-209.0,0.0001,2]
[356328964,1742286645511,-500.0,0.0001,2]
[356328966,1742286645521,-1146.0,0.0001,2]
[356328968,1742286645530,-150.0,0.0001,2]
[356328970,1742286645539,-150.0,0.0001,2]
[356328972,1742286645549,-150.0,0.0001,2]
[356328974,1742286645559,-150.0,0.0001,2]
[356328976,1742286645569,-151.0,0.0001,2]
[356329000,1742286645783,-151.0,0.0001,2]
[356329002,1742286645794,-151.0,0.0001,2]
[356329004,1742286645803,-151.0,0.0001,2]
[356329006,1742286645813,-260.620315,0.0001,2]
[356329008,1742286645823,-7198.55301296,0.0001,2]
[356329010,1742286645832,-151.0,0.0001,2]
[356329012,1742286645842,-151.0,0.0001,2]
[356329014,1742286645851,-151.0,0.0001,2]
[356329016,1742286645861,-1346.539808,0.0001,2]
[356329018,1742286645870,-1346.539808,0.0001,2]
[356329020,1742286645879,-1489.48650643,0.0001,2]
[356329022,1742286645889,-6807.7416444,0.00010001,2]
[356329024,1742286645899,-2921.773354,0.00010008,2]
[356329026,1742286645907,-166.66,0.00010022,2]
[356329028,1742286645917,-500.0,0.00010027,2]
[356329030,1742286645926,-150.0,0.00010027,2]
[356329032,1742286645935,-525.40501666,0.00010027,2]
[356329034,1742286645944,-1146.0,0.00010027,2]
[356329036,1742286645953,-150.0,0.00010027,2]
[356329038,1742286645963,-150.0,0.00010027,2]
[356329040,1742286645973,-11631.26231801,0.00010048,2]
[356329042,1742286645983,-500.0,0.00010054,2]
[356329045,1742286645992,-212.98161704,0.00010055,2]
[356329048,1742286646002,-1146.0,0.00010055,2]
[356329050,1742286646011,-150.0,0.00010055,2]
[356329052,1742286646020,-150.0,0.00010055,2]
[356329054,1742286646029,-500.0,0.00010081,2]
[356329056,1742286646038,-669.2732581,0.00010082,2]
[356329089,1742286646358,-546.006,9.8e-05,2]
[356329112,1742286646573,-601.6529264,9.8e-05,2]
[356333938,1742286780676,607.35,8.895e-05,2]
[356333939,1742287020255,500.0,0.00022,120]
[356333940,1742287035695,-295.629286,8.912e-05,2]
[356333941,1742287214462,2387.74,8.219e-05,2]
[356333952,1742287832397,-250.0,9.079e-05,2]
[356333953,1742287832408,-37.19,9.189e-05,2]
[356333954,1742287832556,-275.1175,9.189e-05,2]
[356333955,1742287832567,-406.4793828,9.2e-05,2]
[356333961,1742287838224,-121.8606172,9.2e-05,2]
[356333962,1742287838234,-192.21465697,9.214e-05,2]
[356333963,1742287838383,-434.98534303,9.214e-05,2]
[356333964,1742287838393,-418.42,9.215e-05,2]
[356333965,1742287838403,-151.05,9.284e-05,2]
[356333966,1742287838412,-1296.34465699,9.289e-05,2]
[356333967,1742287838436,-566.26057689,9.289e-05,2]
[356333968,1742287838449,-476.81295156,9.289e-05,2]
[356333969,1742287838462,-6261.38259257,9.289e-05,2]
[356333970,1742287838490,-1670.68265338,9.289e-05,2]
[356333978,1742287840423,-250.0,9.219e-05,2]
[356333979,1742287840434,-13628.51656861,9.289e-05,2]
[356333980,1742287840444,-1000.0,9.292e-05,2]
[356333981,1742287840454,-150.0,9.371e-05,2]
[356333982,1742287840463,-200.0,9.371e-05,2]
[356333983,1742287840472,-167.83,9.517e-05,2]
[356333984,1742287840482,-150.0,9.589e-05,2]
[356333985,1742287840492,-2000.0,9.604e-05,2]
[356333986,1742287840502,-500.0,9.644e-05,2]
[356333987,1742287840512,-158.82,9.675e-05,2]
[356333988,1742287840524,-151.05,9.749e-05,2]
[356333989,1742287840534,-622.9207425,9.779e-05,2]
[356333990,1742287840543,-1644.0092736,9.8e-05,2]
[356333991,1742287840553,-1000.0,9.8e-05,2]
[356333992,1742287840562,-8058.43,9.803e-05,2]
[356333993,1742287840574,-150.0,9.845e-05,2]
[356333994,1742287840584,-150.0,9.845e-05,2]
[356333995,1742287840593,-250.0,9.865e-05,2]
[356333996,1742287840604,-250.0,9.865e-05,2]
[356333997,1742287840614,-500.0,9.9e-05,2]
[356333998,1742287840624,-295.629286,9.9e-05,2]
[356333999,1742287840633,-500.0,9.927e-05,2]
[356334000,1742287840642,-368.38933973,9.934e-05,2]
[356334001,1742287840652,-150.0,9.943e-05,2]
[356334002,1742287840661,-2034.0,9.944e-05,2]
[356334003,1742287840670,-1280.0,9.944e-05,2]
[356334004,1742287840679,-641.0,9.944e-05,2]
[356334005,1742287840689,-571.0,9.944e-05,2]
[356334006,1742287840699,-1419.0,9.944e-05,2]